[Event "*** SCC Grand Prix: Titled Tuesday Blitz"]
[Site "Chess.com"]
[Date "2020.07.21"]
[Round "4"]
[White "Pavel_Mir"]
[Black "nocnypako"]
[Result "0-1"]
[WhiteElo "2338"]
[BlackElo "2582"]
[TimeControl "180+1"]
[EndTime "10:39:00 PDT"]
[Termination "nocnypako won by resignation"]

1. e4 {[%clk 0:03:00.9]} 1... c5 {[%clk 0:02:57.8]} 2. Nf3 {[%clk 0:03:00.5]}
2... d6 {[%clk 0:02:58.4]} 3. d4 {[%clk 0:02:59.6]} 3... cxd4 {[%clk 0:02:59.3]}
4. Nxd4 {[%clk 0:03:00.1]} 4... Nf6 {[%clk 0:02:57.1]} 5. Nc3 {[%clk 0:03:00.6]}
5... a6 {[%clk 0:02:57.6]} 6. f4 {[%clk 0:03:00.8]} 6... e5 {[%clk 0:02:54.2]}
7. Nf3 {[%clk 0:03:00.1]} 7... Nbd7 {[%clk 0:02:54.2]} 8. Bc4 {[%clk 0:02:58.3]}
8... Qa5 {[%clk 0:02:53.4]} 9. Qe2 {[%clk 0:02:55.8]} 9... Be7 {[%clk
0:02:52.4]} 10. O-O {[%clk 0:02:55.7]} 10... O-O {[%clk 0:02:52.3]} 11. Kh1
{[%clk 0:02:55.4]} 11... b5 {[%clk 0:02:51.9]} 12. Bd5 {[%clk 0:02:50.9]} 12...
Rb8 {[%clk 0:02:52.2]} 13. Bd2 {[%clk 0:02:46.3]} 13... Qc7 {[%clk 0:02:50.3]}
14. Bb3 {[%clk 0:02:40.8]} 14... Nb6 {[%clk 0:02:48.3]} 15. Nh4 {[%clk 0:02:34]}
15... b4 {[%clk 0:02:40.4]} 16. Na4 {[%clk 0:02:23.7]} 16... Nxa4 {[%clk
0:02:39.7]} 17. Bxa4 {[%clk 0:02:24]} 17... Bb7 {[%clk 0:02:32.1]} 18. fxe5
{[%clk 0:02:12.1]} 18... dxe5 {[%clk 0:02:30.5]} 19. Nf5 {[%clk 0:01:40.7]}
19... Nxe4 {[%clk 0:02:30.2]} 20. Qg4 {[%clk 0:01:19.3]} 20... g6 {[%clk
0:02:28.6]} 21. Bh6 {[%clk 0:01:13.5]} 21... Rfd8 {[%clk 0:02:26.4]} 22. Bb3
{[%clk 0:01:11.3]} 22... Bf6 {[%clk 0:02:05.1]} 23. Rae1 {[%clk 0:01:04.6]}
23... Kh8 {[%clk 0:02:02.3]} 24. Ng3 {[%clk 0:00:59.9]} 24... Nxg3+ {[%clk
0:01:55.4]} 25. Qxg3 {[%clk 0:00:59.5]} 25... Qe7 {[%clk 0:01:50.9]} 26. Rxf6
{[%clk 0:00:35.9]} 26... Qxf6 {[%clk 0:01:49.5]} 27. Bg5 {[%clk 0:00:35.9]}
27... Qg7 {[%clk 0:01:43.7]} 28. Qh4 {[%clk 0:00:35]} 28... Rd6 {[%clk
0:01:38.2]} 29. Rf1 {[%clk 0:00:34]} 29... f5 {[%clk 0:01:34]} 30. Bh6 {[%clk
0:00:26.1]} 30... Qd7 {[%clk 0:01:24.8]} 31. Bg5 {[%clk 0:00:24.3]} 31... Re8
{[%clk 0:01:05.4]} 32. Bf6+ {[%clk 0:00:21.3]} 32... Rxf6 {[%clk 0:01:05.5]} 33.
Qxf6+ {[%clk 0:00:21.8]} 33... Qg7 {[%clk 0:01:06.4]} 34. Qb6 {[%clk 0:00:18.6]}
34... e4 {[%clk 0:01:03.9]} 35. Qxb4 {[%clk 0:00:17.8]} 35... e3 {[%clk
0:01:01.9]} 36. h3 {[%clk 0:00:17.7]} 36... e2 {[%clk 0:00:56.9]} 37. Re1 {[%clk
0:00:18.3]} 37... Qe5 {[%clk 0:00:55.2]} 38. Bc4 {[%clk 0:00:17.5]} 38... Qg3
{[%clk 0:00:47]} 39. Qc3+ {[%clk 0:00:17.7]} 39... Qxc3 {[%clk 0:00:47]} 40.
bxc3 {[%clk 0:00:17.7]} 40... Re3 {[%clk 0:00:44.5]} 41. Rxe2 {[%clk 0:00:16.9]}
41... Rxh3+ {[%clk 0:00:44.3]} 42. Kg1 {[%clk 0:00:16.4]} 42... Rxc3 {[%clk
0:00:45.2]} 43. Bb3 {[%clk 0:00:15.7]} 43... Be4 {[%clk 0:00:44.4]} 44. Rd2
{[%clk 0:00:14.9]} 44... h5 {[%clk 0:00:41.4]} 45. a4 {[%clk 0:00:14.4]} 45...
h4 {[%clk 0:00:40.1]} 46. a5 {[%clk 0:00:14]} 46... g5 {[%clk 0:00:38.5]} 47.
Kh2 {[%clk 0:00:14.2]} 47... g4 {[%clk 0:00:38.5]} 48. Rd8+ {[%clk 0:00:11.9]}
48... Kg7 {[%clk 0:00:38]} 49. Rd7+ {[%clk 0:00:11.9]} 49... Kf6 {[%clk
0:00:34.6]} 50. Rd6+ {[%clk 0:00:11.7]} 50... Kg5 {[%clk 0:00:34.7]} 51. Rd2
{[%clk 0:00:09.7]} 51... h3 {[%clk 0:00:34.5]} 52. gxh3 {[%clk 0:00:08.9]} 52...
Rxh3+ {[%clk 0:00:33.9]} 53. Kg1 {[%clk 0:00:09.8]} 53... g3 {[%clk 0:00:32.5]}
0-1

[Event "*** SCC Grand Prix: Titled Tuesday Blitz"]
[Site "Chess.com"]
[Date "2020.07.21"]
[Round "4"]
[White "Efremov_Vlad"]
[Black "SCIM"]
[Result "1/2-1/2"]
[WhiteElo "2194"]
[BlackElo "2565"]
[TimeControl "180+1"]
[EndTime "10:39:03 PDT"]
[Termination "Game drawn - insufficient material"]

1. d4 {[%clk 0:03:00.9]} 1... Nf6 {[%clk 0:02:58.7]} 2. c4 {[%clk 0:03:00.9]}
2... g6 {[%clk 0:02:57.9]} 3. Nf3 {[%clk 0:03:01]} 3... Bg7 {[%clk 0:02:56.3]}
4. g3 {[%clk 0:03:01.6]} 4... O-O {[%clk 0:02:56.5]} 5. Bg2 {[%clk 0:03:02]}
5... d5 {[%clk 0:02:54.3]} 6. cxd5 {[%clk 0:03:01.5]} 6... Nxd5 {[%clk 0:02:50]}
7. Nc3 {[%clk 0:03:02]} 7... Nb6 {[%clk 0:02:46.8]} 8. O-O {[%clk 0:03:01.3]}
8... Nc6 {[%clk 0:02:46.2]} 9. e3 {[%clk 0:03:01.5]} 9... Re8 {[%clk 0:02:44.4]}
10. a3 {[%clk 0:03:01.3]} 10... a5 {[%clk 0:02:42.2]} 11. Rb1 {[%clk 0:03:00.7]}
11... a4 {[%clk 0:02:41.1]} 12. d5 {[%clk 0:02:49.7]} 12... Bxc3 {[%clk
0:02:27.9]} 13. dxc6 {[%clk 0:02:40.4]} 13... Bg7 {[%clk 0:02:27.7]} 14. Nd4
{[%clk 0:02:24.2]} 14... bxc6 {[%clk 0:02:18.9]} 15. Bxc6 {[%clk 0:02:20.1]}
15... Bh3 {[%clk 0:02:15.4]} 16. Re1 {[%clk 0:02:10.3]} 16... e5 {[%clk
0:02:08.1]} 17. Nb5 {[%clk 0:02:00.2]} 17... Qxd1 {[%clk 0:02:06.4]} 18. Rxd1
{[%clk 0:01:59.8]} 18... Red8 {[%clk 0:02:07.3]} 19. Bd2 {[%clk 0:01:47.9]}
19... Rab8 {[%clk 0:01:50.7]} 20. Bc3 {[%clk 0:01:46.8]} 20... Bg4 {[%clk
0:01:34.2]} 21. f3 {[%clk 0:01:44.4]} 21... Bh3 {[%clk 0:01:33.5]} 22. Kf2
{[%clk 0:01:25.6]} 22... Nc4 {[%clk 0:01:22.3]} 23. Rxd8+ {[%clk 0:01:22]} 23...
Rxd8 {[%clk 0:01:22.8]} 24. Ke2 {[%clk 0:01:13.2]} 24... Bf5 {[%clk 0:01:05.9]}
25. Rd1 {[%clk 0:00:57]} 25... Rxd1 {[%clk 0:01:01.9]} 26. Kxd1 {[%clk
0:00:57.9]} 26... Nxe3+ {[%clk 0:00:59.5]} 27. Ke2 {[%clk 0:00:58.5]} 27... Nc4
{[%clk 0:00:54.5]} 28. Nxc7 {[%clk 0:00:56.9]} 28... e4 {[%clk 0:00:48.8]} 29.
fxe4 {[%clk 0:00:53.6]} 29... Bg4+ {[%clk 0:00:47.9]} 30. Kd3 {[%clk 0:00:40.7]}
30... Nxb2+ {[%clk 0:00:46.8]} 31. Bxb2 {[%clk 0:00:40.1]} 31... Bxb2 {[%clk
0:00:47.7]} 32. Bxa4 {[%clk 0:00:24.2]} 32... Bxa3 {[%clk 0:00:46.3]} 33. Nd5
{[%clk 0:00:24.8]} 33... Kg7 {[%clk 0:00:42.8]} 34. Bb3 {[%clk 0:00:22.2]} 34...
h5 {[%clk 0:00:38.7]} 35. Ke3 {[%clk 0:00:22.4]} 35... Bc5+ {[%clk 0:00:37.9]}
36. Kf4 {[%clk 0:00:19.8]} 36... f6 {[%clk 0:00:31.9]} 37. e5 {[%clk 0:00:10.9]}
37... g5+ {[%clk 0:00:25.8]} 38. Ke4 {[%clk 0:00:10.8]} 38... f5+ {[%clk
0:00:25.5]} 39. Kd3 {[%clk 0:00:09.7]} 39... Bg1 {[%clk 0:00:17.2]} 40. e6
{[%clk 0:00:10]} 40... f4 {[%clk 0:00:13.8]} 41. gxf4 {[%clk 0:00:09.3]} 41...
Bxe6 {[%clk 0:00:13.5]} 42. fxg5 {[%clk 0:00:08.7]} 42... Bxh2 {[%clk
0:00:13.4]} 43. Ke4 {[%clk 0:00:08.7]} 43... h4 {[%clk 0:00:11]} 44. Bd1 {[%clk
0:00:08.4]} 44... Bg3 {[%clk 0:00:08.6]} 45. Nf4 {[%clk 0:00:07.9]} 45... Bc8
{[%clk 0:00:07.5]} 46. Nh5+ {[%clk 0:00:05.5]} 46... Kg6 {[%clk 0:00:07.1]} 47.
Nxg3 {[%clk 0:00:06.1]} 47... hxg3 {[%clk 0:00:06.2]} 48. Kf3 {[%clk 0:00:06.7]}
48... Kxg5 {[%clk 0:00:05.8]} 49. Kxg3 {[%clk 0:00:07.4]} 1/2-1/2

[Event "*** SCC Grand Prix: Titled Tuesday Blitz"]
[Site "Chess.com"]
[Date "2020.07.21"]
[Round "4"]
[White "csati17"]
[Black "PavelChernomordik"]
[Result "1-0"]
[WhiteElo "2620"]
[BlackElo "2344"]
[TimeControl "180+1"]
[EndTime "10:39:05 PDT"]
[Termination "csati17 won on time"]

1. c4 {[%clk 0:03:00.9]} 1... g6 {[%clk 0:02:58.5]} 2. Nc3 {[%clk 0:02:57.5]}
2... Bg7 {[%clk 0:02:58.8]} 3. g3 {[%clk 0:02:58.4]} 3... e5 {[%clk 0:02:57.8]}
4. Bg2 {[%clk 0:02:56.7]} 4... Nc6 {[%clk 0:02:58.2]} 5. e3 {[%clk 0:02:56]}
5... d6 {[%clk 0:02:57.9]} 6. Nge2 {[%clk 0:02:56.3]} 6... Be6 {[%clk
0:02:55.6]} 7. Nd5 {[%clk 0:02:55.8]} 7... Qd7 {[%clk 0:02:52.8]} 8. d4 {[%clk
0:02:55]} 8... Nd8 {[%clk 0:02:49.5]} 9. Qc2 {[%clk 0:02:47]} 9... c6 {[%clk
0:02:47.8]} 10. Nb4 {[%clk 0:02:46]} 10... Bh3 {[%clk 0:02:40.7]} 11. Bxh3
{[%clk 0:02:35.7]} 11... Qxh3 {[%clk 0:02:39.3]} 12. c5 {[%clk 0:02:35.8]} 12...
d5 {[%clk 0:02:32.3]} 13. Nd3 {[%clk 0:02:25.2]} 13... f6 {[%clk 0:02:26.6]} 14.
b4 {[%clk 0:02:18]} 14... Ne7 {[%clk 0:02:18.1]} 15. Bb2 {[%clk 0:02:16.4]}
15... Nf7 {[%clk 0:02:17]} 16. O-O-O {[%clk 0:02:09.5]} 16... O-O {[%clk
0:02:11.9]} 17. a4 {[%clk 0:01:59.2]} 17... Qf5 {[%clk 0:02:03]} 18. f4 {[%clk
0:01:44.4]} 18... e4 {[%clk 0:01:58.7]} 19. Nf2 {[%clk 0:01:42.6]} 19... Qd7
{[%clk 0:01:56.6]} 20. Kb1 {[%clk 0:01:39.3]} 20... a5 {[%clk 0:01:50.8]} 21.
Qb3 {[%clk 0:01:36.8]} 21... axb4 {[%clk 0:01:49.7]} 22. Qxb4 {[%clk 0:01:37.7]}
22... Ra7 {[%clk 0:01:49.2]} 23. Nc3 {[%clk 0:01:36]} 23... Rfa8 {[%clk
0:01:49.2]} 24. g4 {[%clk 0:01:35.2]} 24... Bf8 {[%clk 0:01:47.5]} 25. h4 {[%clk
0:01:33.6]} 25... Nc8 {[%clk 0:01:41.2]} 26. Qb3 {[%clk 0:01:02.2]} 26... b6
{[%clk 0:01:37.4]} 27. Nfxe4 {[%clk 0:00:57.7]} 27... dxe4 {[%clk 0:01:30]} 28.
Nxe4 {[%clk 0:00:58.6]} 28... Qe7 {[%clk 0:01:23.3]} 29. Qc2 {[%clk 0:00:52.4]}
29... bxc5 {[%clk 0:01:18]} 30. dxc5 {[%clk 0:00:51.2]} 30... Rb7 {[%clk
0:01:14.2]} 31. Kc1 {[%clk 0:00:39.3]} 31... Rxb2 {[%clk 0:01:12.9]} 32. Kxb2
{[%clk 0:00:35.8]} 32... Qb7+ {[%clk 0:01:04.9]} 33. Kc1 {[%clk 0:00:34.6]}
33... Bg7 {[%clk 0:01:02.5]} 34. f5 {[%clk 0:00:31.6]} 34... Ne5 {[%clk
0:00:57.7]} 35. g5 {[%clk 0:00:27.9]} 35... Ne7 {[%clk 0:00:49.9]} 36. gxf6
{[%clk 0:00:26.1]} 36... Nxf5 {[%clk 0:00:48.1]} 37. Nd6 {[%clk 0:00:20.6]}
37... Nxd6 {[%clk 0:00:43.5]} 38. Rxd6 {[%clk 0:00:21.5]} 38... Bh6 {[%clk
0:00:42.5]} 39. Qc3 {[%clk 0:00:19.9]} 39... Re8 {[%clk 0:00:34]} 40. Kc2 {[%clk
0:00:18.2]} 40... Nf7 {[%clk 0:00:32.7]} 41. Rb1 {[%clk 0:00:16.9]} 41... Qa6
{[%clk 0:00:30.6]} 42. Qb3 {[%clk 0:00:15.9]} 42... Qe2+ {[%clk 0:00:28.3]} 43.
Rd2 {[%clk 0:00:15.9]} 43... Qg4 {[%clk 0:00:24.2]} 44. Qd3 {[%clk 0:00:15.4]}
44... Bxe3 {[%clk 0:00:17.6]} 45. Qxe3 {[%clk 0:00:14.3]} 45... Rxe3 {[%clk
0:00:15.8]} 46. Rb7 {[%clk 0:00:13.9]} 46... Nd8 {[%clk 0:00:16.2]} 47. Rxd8+
{[%clk 0:00:13.5]} 1-0

[Event "*** SCC Grand Prix: Titled Tuesday Blitz"]
[Site "Chess.com"]
[Date "2020.07.21"]
[Round "4"]
[White "Harsha_Bharathakoti"]
[Black "Indianlad"]
[Result "1/2-1/2"]
[WhiteElo "2764"]
[BlackElo "2971"]
[TimeControl "180+1"]
[EndTime "10:39:08 PDT"]
[Termination "Game drawn by repetition"]

1. d4 {[%clk 0:03:00.9]} 1... d5 {[%clk 0:03:00.3]} 2. c4 {[%clk 0:03:00.8]}
2... e6 {[%clk 0:03:00.8]} 3. Nf3 {[%clk 0:03:00.8]} 3... a6 {[%clk 0:03:01.1]}
4. cxd5 {[%clk 0:03:00.6]} 4... exd5 {[%clk 0:03:02]} 5. Nc3 {[%clk 0:03:00.9]}
5... Nf6 {[%clk 0:03:02.6]} 6. Bg5 {[%clk 0:03:00.8]} 6... Be6 {[%clk
0:03:03.3]} 7. e3 {[%clk 0:03:00.5]} 7... Nbd7 {[%clk 0:03:03.4]} 8. Bd3 {[%clk
0:03:00.6]} 8... Bd6 {[%clk 0:03:03.8]} 9. Bf4 {[%clk 0:02:56.3]} 9... Qe7
{[%clk 0:03:04]} 10. O-O {[%clk 0:02:56.5]} 10... h6 {[%clk 0:03:04.3]} 11. Re1
{[%clk 0:02:54.7]} 11... O-O {[%clk 0:03:03.6]} 12. h3 {[%clk 0:02:48.7]} 12...
Rfe8 {[%clk 0:03:03.4]} 13. Rc1 {[%clk 0:02:36.4]} 13... Rac8 {[%clk 0:02:57.6]}
14. Qb3 {[%clk 0:02:27.2]} 14... c5 {[%clk 0:02:50.6]} 15. Bxd6 {[%clk
0:02:18.7]} 15... Qxd6 {[%clk 0:02:50.7]} 16. dxc5 {[%clk 0:02:18.2]} 16... Nxc5
{[%clk 0:02:50.8]} 17. Qa3 {[%clk 0:02:14.3]} 17... b5 {[%clk 0:02:45]} 18. Bb1
{[%clk 0:01:44.2]} 18... Qb6 {[%clk 0:02:45]} 19. Qb4 {[%clk 0:01:43.7]} 19...
Nce4 {[%clk 0:02:28.7]} 20. Nxe4 {[%clk 0:01:40.4]} 20... dxe4 {[%clk
0:02:29.2]} 21. Nd4 {[%clk 0:01:37.4]} 21... Bd7 {[%clk 0:02:06.9]} 22. a3
{[%clk 0:01:25.1]} 22... a5 {[%clk 0:02:06.6]} 23. Qb3 {[%clk 0:01:24]} 23...
Rc5 {[%clk 0:01:47.4]} 24. Ba2 {[%clk 0:01:12.8]} 24... Rf8 {[%clk 0:01:47.8]}
25. Rxc5 {[%clk 0:01:02.9]} 25... Qxc5 {[%clk 0:01:47.9]} 26. Qc2 {[%clk
0:00:30.1]} 26... Qg5 {[%clk 0:01:47.7]} 27. Kh2 {[%clk 0:00:29.1]} 27... Qh4
{[%clk 0:01:44.3]} 28. Qd2 {[%clk 0:00:26.3]} 28... Ng4+ {[%clk 0:01:30.5]} 29.
Kg1 {[%clk 0:00:26.2]} 29... Ne5 {[%clk 0:01:31.3]} 30. Bd5 {[%clk 0:00:19.7]}
30... Qg5 {[%clk 0:01:25]} 31. Bxe4 {[%clk 0:00:17.8]} 31... Nc4 {[%clk
0:00:53.4]} 32. Qc2 {[%clk 0:00:17.8]} 32... Bxh3 {[%clk 0:00:45.5]} 33. f4
{[%clk 0:00:17.7]} 33... Qg3 {[%clk 0:00:44.9]} 34. Qf2 {[%clk 0:00:16.9]} 34...
Qxf2+ {[%clk 0:00:45.5]} 35. Kxf2 {[%clk 0:00:17.8]} 35... Bd7 {[%clk
0:00:46.2]} 36. Re2 {[%clk 0:00:16.9]} 36... Re8 {[%clk 0:00:37.9]} 37. Bd5
{[%clk 0:00:17.3]} 37... Nb6 {[%clk 0:00:35.7]} 38. Bb3 {[%clk 0:00:17.1]} 38...
Kf8 {[%clk 0:00:25.5]} 39. Rc2 {[%clk 0:00:16.4]} 39... Rc8 {[%clk 0:00:24.8]}
40. Rxc8+ {[%clk 0:00:16.5]} 40... Nxc8 {[%clk 0:00:25.7]} 41. e4 {[%clk
0:00:16.5]} 41... Nb6 {[%clk 0:00:23]} 42. Ke3 {[%clk 0:00:16.3]} 42... Ke7
{[%clk 0:00:22.9]} 43. e5 {[%clk 0:00:13.5]} 43... g6 {[%clk 0:00:23.2]} 44. g3
{[%clk 0:00:13.6]} 44... h5 {[%clk 0:00:23.7]} 45. Ba2 {[%clk 0:00:13.8]} 45...
Na4 {[%clk 0:00:18.7]} 46. b4 {[%clk 0:00:12]} 46... axb4 {[%clk 0:00:19.4]} 47.
axb4 {[%clk 0:00:12.9]} 47... Nb6 {[%clk 0:00:20.1]} 48. Bb3 {[%clk 0:00:12.9]}
48... Be8 {[%clk 0:00:18.2]} 49. Ke4 {[%clk 0:00:12.1]} 49... Bd7 {[%clk
0:00:18.3]} 50. Ke3 {[%clk 0:00:08.6]} 50... Be8 {[%clk 0:00:18]} 51. Ke4 {[%clk
0:00:08.1]} 51... Bd7 {[%clk 0:00:18.6]} 52. Ke3 {[%clk 0:00:07.5]} 1/2-1/2

[Event "*** SCC Grand Prix: Titled Tuesday Blitz"]
[Site "Chess.com"]
[Date "2020.07.21"]
[Round "4"]
[White "Biranidun"]
[Black "Makswolf200817"]
[Result "0-1"]
[WhiteElo "2847"]
[BlackElo "2479"]
[TimeControl "180+1"]
[EndTime "10:39:09 PDT"]
[Termination "Makswolf200817 won by resignation"]

1. e4 {[%clk 0:03:00.9]} 1... e6 {[%clk 0:02:59.6]} 2. d4 {[%clk 0:03:00.7]}
2... d5 {[%clk 0:02:59.6]} 3. Nc3 {[%clk 0:03:01.6]} 3... Bb4 {[%clk 0:02:59.2]}
4. e5 {[%clk 0:03:02.5]} 4... c5 {[%clk 0:02:59.2]} 5. a3 {[%clk 0:03:03.4]}
5... Bxc3+ {[%clk 0:02:59.8]} 6. bxc3 {[%clk 0:03:04.3]} 6... Qa5 {[%clk
0:03:00.3]} 7. Bd2 {[%clk 0:03:03.9]} 7... Qa4 {[%clk 0:03:00]} 8. Qb1 {[%clk
0:03:04.3]} 8... c4 {[%clk 0:02:59.6]} 9. Ne2 {[%clk 0:03:04.9]} 9... f6 {[%clk
0:02:58.3]} 10. exf6 {[%clk 0:03:01.6]} 10... Nxf6 {[%clk 0:02:58.1]} 11. Ng3
{[%clk 0:02:56.7]} 11... Nc6 {[%clk 0:02:57.6]} 12. f4 {[%clk 0:02:53]} 12... h5
{[%clk 0:02:49.6]} 13. Be2 {[%clk 0:02:35.4]} 13... h4 {[%clk 0:02:45.1]} 14.
Nf1 {[%clk 0:02:35.6]} 14... Bd7 {[%clk 0:02:34.8]} 15. Bf3 {[%clk 0:02:31.9]}
15... O-O-O {[%clk 0:02:33.4]} 16. Ne3 {[%clk 0:02:30.4]} 16... Rdf8 {[%clk
0:02:28]} 17. O-O {[%clk 0:02:29.7]} 17... Be8 {[%clk 0:02:03.2]} 18. f5 {[%clk
0:02:16.4]} 18... Bd7 {[%clk 0:02:02]} 19. Qb2 {[%clk 0:01:51.4]} 19... Re8
{[%clk 0:01:41.9]} 20. Rab1 {[%clk 0:01:45.8]} 20... b6 {[%clk 0:01:40.4]} 21.
Rbe1 {[%clk 0:01:39.5]} 21... Qa5 {[%clk 0:01:36.4]} 22. Qc1 {[%clk 0:01:35.5]}
22... exf5 {[%clk 0:01:32.5]} 23. a4 {[%clk 0:01:04.5]} 23... g5 {[%clk
0:01:14.2]} 24. Qa3 {[%clk 0:00:56.3]} 24... f4 {[%clk 0:01:08.7]} 25. Nxc4
{[%clk 0:00:44.5]} 25... dxc4 {[%clk 0:00:58.4]} 26. Qd6 {[%clk 0:00:44.4]}
26... Qxa4 {[%clk 0:00:30.2]} 27. Qxf6 {[%clk 0:00:41.9]} 27... Qxc2 {[%clk
0:00:21.9]} 28. Rd1 {[%clk 0:00:06.1]} 28... Nd8 {[%clk 0:00:18.5]} 29. Qxg5
{[%clk 0:00:04.9]} 29... h3 {[%clk 0:00:17]} 30. Bxf4 {[%clk 0:00:03.8]} 30...
hxg2 {[%clk 0:00:16.5]} 31. Rf2 {[%clk 0:00:02.4]} 31... Qxc3 {[%clk 0:00:12.3]}
32. Qd5 {[%clk 0:00:02.5]} 32... Re1+ {[%clk 0:00:11.6]} 33. Rxe1 {[%clk
0:00:02.2]} 33... Qxe1+ {[%clk 0:00:12.5]} 34. Kxg2 {[%clk 0:00:03.1]} 34...
Bh3+ {[%clk 0:00:12.4]} 35. Kg3 {[%clk 0:00:03.1]} 35... Qg1+ {[%clk 0:00:06.7]}
36. Bg2 {[%clk 0:00:03.6]} 36... Bxg2 {[%clk 0:00:04.2]} 37. Rxg2 {[%clk
0:00:03.8]} 37... Qd1 {[%clk 0:00:04.3]} 38. Qa8+ {[%clk 0:00:02.3]} 38... Kd7
{[%clk 0:00:04.4]} 39. Qxa7+ {[%clk 0:00:03]} 39... Ke8 {[%clk 0:00:04.6]} 40.
Qg7 {[%clk 0:00:01.9]} 40... Qe1+ {[%clk 0:00:04.8]} 41. Rf2 {[%clk 0:00:02]}
41... Qg1+ {[%clk 0:00:05]} 42. Kf3 {[%clk 0:00:02.5]} 42... Qxg7 {[%clk
0:00:04.7]} 43. Re2+ {[%clk 0:00:02.7]} 43... Kf8 {[%clk 0:00:04.3]} 44. Be5
{[%clk 0:00:03.6]} 44... Qf7+ {[%clk 0:00:04.1]} 45. Ke3 {[%clk 0:00:04.5]}
45... Rh3+ {[%clk 0:00:03.2]} 46. Kd2 {[%clk 0:00:04.1]} 46... Qf3 {[%clk
0:00:03.8]} 47. Bd6+ {[%clk 0:00:03.2]} 47... Kf7 {[%clk 0:00:03.4]} 48. Rf2
{[%clk 0:00:02.5]} 48... Qxf2+ {[%clk 0:00:03.4]} 0-1

[Event "*** SCC Grand Prix: Titled Tuesday Blitz"]
[Site "Chess.com"]
[Date "2020.07.21"]
[Round "4"]
[White "kingofthenil"]
[Black "TheCount"]
[Result "1-0"]
[WhiteElo "2437"]
[BlackElo "2648"]
[TimeControl "180+1"]
[EndTime "10:39:09 PDT"]
[Termination "kingofthenil won by resignation"]

1. e4 {[%clk 0:03:00.9]} 1... c5 {[%clk 0:02:19.1]} 2. d3 {[%clk 0:02:58.7]}
2... Nc6 {[%clk 0:02:14.3]} 3. g3 {[%clk 0:02:58.7]} 3... g6 {[%clk 0:02:14.6]}
4. Bg2 {[%clk 0:02:58.4]} 4... Bg7 {[%clk 0:02:15]} 5. f4 {[%clk 0:02:58.2]}
5... d6 {[%clk 0:02:15.4]} 6. Nf3 {[%clk 0:02:58.4]} 6... Nf6 {[%clk 0:02:15.9]}
7. O-O {[%clk 0:02:58.9]} 7... O-O {[%clk 0:02:16.5]} 8. Nc3 {[%clk 0:02:59.1]}
8... Bg4 {[%clk 0:02:16.4]} 9. h3 {[%clk 0:02:59.9]} 9... Bxf3 {[%clk
0:02:16.6]} 10. Qxf3 {[%clk 0:03:00.8]} 10... Nd4 {[%clk 0:02:16.7]} 11. Qf2
{[%clk 0:03:01.5]} 11... e5 {[%clk 0:02:13.9]} 12. fxe5 {[%clk 0:03:00.2]} 12...
dxe5 {[%clk 0:02:14.8]} 13. Bg5 {[%clk 0:03:00.2]} 13... Ng4 {[%clk 0:01:55.9]}
14. Bxd8 {[%clk 0:03:01.1]} 14... Nxf2 {[%clk 0:01:55.4]} 15. Be7 {[%clk
0:02:21.3]} 15... Rfe8 {[%clk 0:01:46.5]} 16. Bxc5 {[%clk 0:01:30.4]} 16... Nxc2
{[%clk 0:01:46.2]} 17. Kxf2 {[%clk 0:01:29.9]} 17... Nxa1 {[%clk 0:01:39.4]} 18.
Rxa1 {[%clk 0:01:30.8]} 18... b6 {[%clk 0:01:38.9]} 19. Be3 {[%clk 0:01:27.6]}
19... Rac8 {[%clk 0:01:37.1]} 20. a4 {[%clk 0:01:24.9]} 20... Red8 {[%clk
0:01:35.3]} 21. Ke2 {[%clk 0:01:24.2]} 21... Bf8 {[%clk 0:01:32.1]} 22. Bg5
{[%clk 0:01:17.8]} 22... Rd7 {[%clk 0:01:24]} 23. Rc1 {[%clk 0:01:03]} 23... h6
{[%clk 0:01:13.8]} 24. Nd5 {[%clk 0:00:57.3]} 24... Rxc1 {[%clk 0:01:08.6]} 25.
Bxc1 {[%clk 0:00:58.2]} 25... Kg7 {[%clk 0:01:07.5]} 26. Bd2 {[%clk 0:00:51]}
26... Bc5 {[%clk 0:01:01]} 27. Bc3 {[%clk 0:00:50]} 27... Bd4 {[%clk 0:01:00.2]}
28. Bxd4 {[%clk 0:00:30.8]} 28... exd4 {[%clk 0:01:01.1]} 29. Kd2 {[%clk
0:00:30.1]} 29... Rd8 {[%clk 0:00:50.7]} 30. Bf3 {[%clk 0:00:28.7]} 30... h5
{[%clk 0:00:49.3]} 31. h4 {[%clk 0:00:26.3]} 31... Kh6 {[%clk 0:00:46.1]} 32.
Nb4 {[%clk 0:00:22.7]} 32... Rc8 {[%clk 0:00:40.4]} 33. e5 {[%clk 0:00:17.5]}
33... Re8 {[%clk 0:00:26.4]} 34. Nc6 {[%clk 0:00:17.1]} 34... g5 {[%clk
0:00:26.4]} 35. Bd5 {[%clk 0:00:11.1]} 35... Kg6 {[%clk 0:00:21.5]} 36. hxg5
{[%clk 0:00:07]} 36... a5 {[%clk 0:00:20]} 37. Ke2 {[%clk 0:00:06.3]} 37... Rf8
{[%clk 0:00:13.8]} 38. Nxd4 {[%clk 0:00:05.6]} 38... Rd8 {[%clk 0:00:13.3]} 39.
Be4+ {[%clk 0:00:05.6]} 39... Kxg5 {[%clk 0:00:13.8]} 40. Nf5 {[%clk 0:00:04.5]}
40... Kg4 {[%clk 0:00:11.8]} 41. d4 {[%clk 0:00:03.7]} 41... Re8 {[%clk
0:00:10]} 42. Ke3 {[%clk 0:00:01.7]} 42... Re6 {[%clk 0:00:06.9]} 43. Nd6 {[%clk
0:00:01.9]} 43... f6 {[%clk 0:00:06.4]} 44. Bf5+ {[%clk 0:00:01.4]} 44... Kxg3
{[%clk 0:00:06.9]} 45. Bxe6 {[%clk 0:00:02.3]} 45... fxe5 {[%clk 0:00:07.3]} 46.
dxe5 {[%clk 0:00:03.2]} 46... h4 {[%clk 0:00:08.1]} 47. Nf5+ {[%clk 0:00:03.3]}
47... Kg2 {[%clk 0:00:08.1]} 48. Nxh4+ {[%clk 0:00:04.2]} 48... Kg3 {[%clk
0:00:08.2]} 49. Bf5 {[%clk 0:00:04.7]} 49... Kxh4 {[%clk 0:00:08.4]} 50. e6
{[%clk 0:00:05.6]} 50... Kg5 {[%clk 0:00:09.3]} 51. e7 {[%clk 0:00:06.5]} 51...
Kxf5 {[%clk 0:00:09.9]} 52. e8=Q {[%clk 0:00:07.4]} 52... Kf6 {[%clk 0:00:09.5]}
53. Qb5 {[%clk 0:00:08.3]} 53... Kg7 {[%clk 0:00:10.3]} 54. Qxb6 {[%clk
0:00:09]} 54... Kf7 {[%clk 0:00:11.2]} 55. Qxa5 {[%clk 0:00:09.9]} 55... Ke7
{[%clk 0:00:12.1]} 56. Qb6 {[%clk 0:00:10.8]} 56... Kd7 {[%clk 0:00:13]} 57. a5
{[%clk 0:00:11.7]} 1-0